[Event "*** SCC Grand Prix: Titled Tuesday Blitz"]
[Site "Chess.com"]
[Date "2020.06.09"]
[Round "3"]
[White "DonPreuss"]
[Black "GMCarbone"]
[Result "1-0"]
[WhiteElo "2215"]
[BlackElo "2368"]
[TimeControl "180+1"]
[EndTime "9:28:52 PDT"]
[Termination "DonPreuss won by resignation"]

1. d4 {[%clk 0:03:00.9]} 1... Nf6 {[%clk 0:02:59.6]} 2. Nc3 {[%clk 0:03:00.1]}
2... d5 {[%clk 0:02:59]} 3. e4 {[%clk 0:02:55.9]} 3... dxe4 {[%clk 0:02:58.6]}
4. f3 {[%clk 0:02:56.1]} 4... exf3 {[%clk 0:02:58.4]} 5. Nxf3 {[%clk 0:02:57]}
5... Bg4 {[%clk 0:02:58.1]} 6. h3 {[%clk 0:02:56.8]} 6... Bh5 {[%clk 0:02:57.4]}
7. g4 {[%clk 0:02:55.5]} 7... Bg6 {[%clk 0:02:57]} 8. Ne5 {[%clk 0:02:56.1]}
8... e6 {[%clk 0:02:55.7]} 9. Qf3 {[%clk 0:02:52.3]} 9... c6 {[%clk 0:02:47]}
10. g5 {[%clk 0:02:47.8]} 10... Nd5 {[%clk 0:02:34.3]} 11. Bd3 {[%clk
0:02:45.2]} 11... Nd7 {[%clk 0:02:19.8]} 12. Bxg6 {[%clk 0:02:17.2]} 12... Nxe5
{[%clk 0:02:16.8]} 13. dxe5 {[%clk 0:02:16.2]} 13... hxg6 {[%clk 0:02:16]} 14.
Rf1 {[%clk 0:02:05.6]} 14... Qc7 {[%clk 0:02:02.7]} 15. Bf4 {[%clk 0:02:00.3]}
15... Bb4 {[%clk 0:01:57.9]} 16. O-O-O {[%clk 0:01:55.8]} 16... O-O-O {[%clk
0:01:54.6]} 17. Ne4 {[%clk 0:01:52.9]} 17... Kb8 {[%clk 0:01:48.2]} 18. Nd6
{[%clk 0:01:48.1]} 18... Rhf8 {[%clk 0:01:34.5]} 19. c4 {[%clk 0:01:42.4]} 19...
Ne7 {[%clk 0:01:20.3]} 20. a3 {[%clk 0:01:33.8]} 20... Bc5 {[%clk 0:00:38.5]}
21. b4 {[%clk 0:01:33.3]} 21... Bb6 {[%clk 0:00:36.6]} 22. c5 {[%clk 0:01:33]}
22... Nd5 {[%clk 0:00:36.9]} 23. cxb6 {[%clk 0:01:30.8]} 23... Qxb6 {[%clk
0:00:37.8]} 24. Qd3 {[%clk 0:00:57.8]} 24... Rd7 {[%clk 0:00:27.4]} 25. Bd2
{[%clk 0:00:55.5]} 25... Qd8 {[%clk 0:00:18]} 26. Qc4 {[%clk 0:00:44.4]} 26...
Ka8 {[%clk 0:00:17.8]} 27. Rf3 {[%clk 0:00:41.3]} 27... f6 {[%clk 0:00:17]} 28.
gxf6 {[%clk 0:00:40.9]} 28... gxf6 {[%clk 0:00:17.1]} 29. Ne4 {[%clk 0:00:39.9]}
29... fxe5 {[%clk 0:00:15.5]} 30. Rxf8 {[%clk 0:00:39.4]} 30... Qxf8 {[%clk
0:00:16.4]} 31. Nc5 {[%clk 0:00:39]} 31... Re7 {[%clk 0:00:13.1]} 32. b5 {[%clk
0:00:33.4]} 32... Qf3 {[%clk 0:00:12.9]} 33. Bb4 {[%clk 0:00:26]} 33... Rc7
{[%clk 0:00:08.9]} 34. Rf1 {[%clk 0:00:20.5]} 34... Qe3+ {[%clk 0:00:07.6]} 35.
Kb2 {[%clk 0:00:18.5]} 35... cxb5 {[%clk 0:00:05.3]} 36. Rf8+ {[%clk 0:00:17.7]}
1-0

[Event "*** SCC Grand Prix: Titled Tuesday Blitz"]
[Site "Chess.com"]
[Date "2020.06.09"]
[Round "3"]
[White "Fandorine"]
[Black "Fins0905"]
[Result "1/2-1/2"]
[WhiteElo "2894"]
[BlackElo "2661"]
[TimeControl "180+1"]
[EndTime "9:28:55 PDT"]
[Termination "Game drawn by agreement"]

1. e4 {[%clk 0:03:00.9]} 1... d5 {[%clk 0:02:59]} 2. exd5 {[%clk 0:02:59.2]}
2... Qxd5 {[%clk 0:02:59.6]} 3. Nc3 {[%clk 0:02:59.1]} 3... Qd8 {[%clk
0:02:57.7]} 4. Bc4 {[%clk 0:02:55.2]} 4... Nf6 {[%clk 0:02:56.3]} 5. Nf3 {[%clk
0:02:55.5]} 5... a6 {[%clk 0:02:55.7]} 6. d4 {[%clk 0:02:54.3]} 6... b5 {[%clk
0:02:55.2]} 7. Bb3 {[%clk 0:02:54.6]} 7... c5 {[%clk 0:02:55.3]} 8. dxc5 {[%clk
0:02:52.9]} 8... Qxd1+ {[%clk 0:02:54.8]} 9. Nxd1 {[%clk 0:02:53.8]} 9... e6
{[%clk 0:02:54.9]} 10. Be3 {[%clk 0:02:49.9]} 10... Ne4 {[%clk 0:02:48.9]} 11.
c3 {[%clk 0:02:45.8]} 11... Nxc5 {[%clk 0:02:46.7]} 12. Bc2 {[%clk 0:02:45.6]}
12... Bb7 {[%clk 0:02:46.4]} 13. O-O {[%clk 0:02:42.8]} 13... Be7 {[%clk
0:02:37.6]} 14. Nd4 {[%clk 0:02:23]} 14... O-O {[%clk 0:02:17.8]} 15. Nb3 {[%clk
0:02:22.8]} 15... Nxb3 {[%clk 0:02:11.9]} 16. axb3 {[%clk 0:02:18.7]} 16... Nd7
{[%clk 0:02:08.9]} 17. b4 {[%clk 0:02:15.6]} 17... Ne5 {[%clk 0:02:04.9]} 18.
Bd4 {[%clk 0:02:10.9]} 18... Nc4 {[%clk 0:02:02.8]} 19. Re1 {[%clk 0:02:07.2]}
19... Rfd8 {[%clk 0:01:58.4]} 20. Bb3 {[%clk 0:01:56.8]} 20... Rac8 {[%clk
0:01:38.7]} 21. Bxc4 {[%clk 0:01:45]} 21... Rxc4 {[%clk 0:01:37.9]} 22. Ne3
{[%clk 0:01:45.7]} 22... Rcc8 {[%clk 0:01:37.6]} 23. Red1 {[%clk 0:01:38.3]}
23... f6 {[%clk 0:01:29.1]} 24. Bb6 {[%clk 0:01:30.6]} 24... Rxd1+ {[%clk
0:01:27.3]} 25. Rxd1 {[%clk 0:01:31.5]} 25... Bc6 {[%clk 0:01:26.1]} 26. Nc2
{[%clk 0:01:26.4]} 26... Kf7 {[%clk 0:01:20.7]} 27. Ra1 {[%clk 0:01:14.5]} 27...
Bb7 {[%clk 0:01:19.4]} 28. Nd4 {[%clk 0:01:14.6]} 28... e5 {[%clk 0:01:03.4]}
29. Nb3 {[%clk 0:01:14.4]} 29... Ke6 {[%clk 0:00:54.2]} 30. Bc5 {[%clk
0:01:06.7]} 30... Bd8 {[%clk 0:00:54.1]} 31. Be3 {[%clk 0:00:47.5]} 31... Be7
{[%clk 0:00:53.1]} 32. Bb6 {[%clk 0:00:45]} 32... Bd5 {[%clk 0:00:42.8]} 33.
Nc5+ {[%clk 0:00:29.2]} 33... Bxc5 {[%clk 0:00:41]} 34. Bxc5 {[%clk 0:00:30.1]}
34... Bb7 {[%clk 0:00:35.2]} 35. Rd1 {[%clk 0:00:30.4]} 35... Bd5 {[%clk
0:00:35]} 36. f3 {[%clk 0:00:30.4]} 36... Rc7 {[%clk 0:00:33]} 37. Kf2 {[%clk
0:00:30.3]} 37... Rd7 {[%clk 0:00:32.8]} 38. g3 {[%clk 0:00:26.7]} 38... g5
{[%clk 0:00:29.9]} 39. Ke3 {[%clk 0:00:17.6]} 39... Bb7 {[%clk 0:00:18.3]} 40.
Rxd7 {[%clk 0:00:13.6]} 40... Kxd7 {[%clk 0:00:19.2]} 41. Bb6 {[%clk 0:00:10.5]}
1/2-1/2

[Event "*** SCC Grand Prix: Titled Tuesday Blitz"]
[Site "Chess.com"]
[Date "2020.06.09"]
[Round "3"]
[White "cukus"]
[Black "Onischuk_V"]
[Result "0-1"]
[WhiteElo "2470"]
[BlackElo "2884"]
[TimeControl "180+1"]
[EndTime "9:28:55 PDT"]
[Termination "Onischuk_V won on time"]

1. e4 {[%clk 0:03:00.9]} 1... d6 {[%clk 0:02:59.8]} 2. d4 {[%clk 0:03:00.8]}
2... Nf6 {[%clk 0:03:00.5]} 3. Nc3 {[%clk 0:03:01.1]} 3... g6 {[%clk 0:03:01.1]}
4. f3 {[%clk 0:02:54.8]} 4... Bg7 {[%clk 0:03:01.4]} 5. Be3 {[%clk 0:02:54.7]}
5... c6 {[%clk 0:03:00.9]} 6. Qd2 {[%clk 0:02:52.9]} 6... h6 {[%clk 0:03:00.6]}
7. O-O-O {[%clk 0:02:52.4]} 7... b5 {[%clk 0:03:00]} 8. Kb1 {[%clk 0:02:52.4]}
8... b4 {[%clk 0:02:58.7]} 9. Nce2 {[%clk 0:02:52.4]} 9... Qa5 {[%clk 0:02:53]}
10. Nc1 {[%clk 0:02:51.9]} 10... Nbd7 {[%clk 0:02:50.9]} 11. h4 {[%clk
0:02:47.4]} 11... Rb8 {[%clk 0:02:25.9]} 12. g4 {[%clk 0:02:39.7]} 12... Qc7
{[%clk 0:02:15.3]} 13. Nh3 {[%clk 0:02:28.2]} 13... Nb6 {[%clk 0:02:14.6]} 14.
g5 {[%clk 0:02:25.6]} 14... hxg5 {[%clk 0:02:14.1]} 15. hxg5 {[%clk 0:02:25.9]}
15... Nh5 {[%clk 0:02:13.5]} 16. Qf2 {[%clk 0:02:16.8]} 16... Na4 {[%clk
0:02:07.9]} 17. Nb3 {[%clk 0:01:52.6]} 17... c5 {[%clk 0:01:53]} 18. dxc5 {[%clk
0:01:44.4]} 18... Bxb2 {[%clk 0:01:51.9]} 19. Bd4 {[%clk 0:01:23.7]} 19... Nc3+
{[%clk 0:01:49.2]} 20. Bxc3 {[%clk 0:01:18.9]} 20... Bxc3 {[%clk 0:01:43.3]} 21.
cxd6 {[%clk 0:01:12.3]} 21... exd6 {[%clk 0:01:40.6]} 22. Bd3 {[%clk 0:00:55.7]}
22... Be6 {[%clk 0:01:39.3]} 23. f4 {[%clk 0:00:44.4]} 23... Bg7 {[%clk
0:01:20.4]} 24. e5 {[%clk 0:00:35.9]} 24... Qc3 {[%clk 0:00:57]} 25. Qd4 {[%clk
0:00:18.5]} 25... O-O {[%clk 0:00:56.1]} 26. Qxc3 {[%clk 0:00:18.4]} 26... bxc3
{[%clk 0:00:55.8]} 27. exd6 {[%clk 0:00:15.6]} 27... Rfd8 {[%clk 0:00:47.5]} 28.
f5 {[%clk 0:00:07.5]} 28... gxf5 {[%clk 0:00:47.5]} 29. g6 {[%clk 0:00:06]}
29... fxg6 {[%clk 0:00:29.2]} 30. Ng5 {[%clk 0:00:06.4]} 30... Bd5 {[%clk
0:00:29.3]} 31. Rhe1 {[%clk 0:00:05.4]} 31... Bf6 {[%clk 0:00:21]} 32. Ne6
{[%clk 0:00:01.6]} 32... Rxd6 {[%clk 0:00:18.8]} 33. Nc7 {[%clk 0:00:02.3]}
33... Bf7 {[%clk 0:00:17.1]} 34. Bb5 {[%clk 0:00:01]} 34... Rxd1+ {[%clk
0:00:15.1]} 35. Rxd1 {[%clk 0:00:01.9]} 35... Be5 {[%clk 0:00:15.3]} 0-1

[Event "*** SCC Grand Prix: Titled Tuesday Blitz"]
[Site "Chess.com"]
[Date "2020.06.09"]
[Round "3"]
[White "GoltsevDmitry2000"]
[Black "Mikasinski"]
[Result "1-0"]
[WhiteElo "2624"]
[BlackElo "2413"]
[TimeControl "180+1"]
[EndTime "9:28:56 PDT"]
[Termination "GoltsevDmitry2000 won by resignation"]

1. e4 {[%clk 0:03:00]} 1... c5 {[%clk 0:02:59.5]} 2. Nf3 {[%clk 0:02:58.7]} 2...
d6 {[%clk 0:02:58.7]} 3. d4 {[%clk 0:02:59.1]} 3... cxd4 {[%clk 0:02:59]} 4.
Nxd4 {[%clk 0:03:00]} 4... Nf6 {[%clk 0:02:58.2]} 5. Nc3 {[%clk 0:03:00.1]} 5...
g6 {[%clk 0:02:58.6]} 6. Be2 {[%clk 0:03:00.3]} 6... Bg7 {[%clk 0:02:58.9]} 7.
O-O {[%clk 0:03:00.4]} 7... O-O {[%clk 0:02:59.5]} 8. Be3 {[%clk 0:02:56]} 8...
Nc6 {[%clk 0:02:59.5]} 9. f4 {[%clk 0:02:50.2]} 9... Qb6 {[%clk 0:02:05.1]} 10.
a3 {[%clk 0:02:07.5]} 10... Nxe4 {[%clk 0:01:52.4]} 11. Nd5 {[%clk 0:01:47.2]}
11... Qd8 {[%clk 0:00:53.1]} 12. Bf3 {[%clk 0:01:40.8]} 12... Nxd4 {[%clk
0:00:26.5]} 13. Bxd4 {[%clk 0:01:41.7]} 13... Bxd4+ {[%clk 0:00:16.1]} 14. Qxd4
{[%clk 0:01:42.6]} 14... Nc5 {[%clk 0:00:15.1]} 15. Rfe1 {[%clk 0:01:36.1]}
15... Be6 {[%clk 0:00:08.2]} 16. b4 {[%clk 0:01:33]} 16... Nd7 {[%clk
0:00:05.8]} 17. Ne3 {[%clk 0:01:24.2]} 17... Qb6 {[%clk 0:00:03.3]} 18. Qxb6
{[%clk 0:01:20.1]} 18... Nxb6 {[%clk 0:00:03.5]} 19. Bxb7 {[%clk 0:01:20.3]}
19... Rab8 {[%clk 0:00:03.4]} 20. Ba6 {[%clk 0:01:19.9]} 20... Nd7 {[%clk
0:00:01.9]} 21. Bd3 {[%clk 0:01:15.1]} 21... Nf6 {[%clk 0:00:02]} 22. c4 {[%clk
0:01:11.8]} 22... Bd7 {[%clk 0:00:02.1]} 23. f5 {[%clk 0:01:09.3]} 23... g5
{[%clk 0:00:01.6]} 24. g4 {[%clk 0:01:06.9]} 24... h6 {[%clk 0:00:01.6]} 25. h3
{[%clk 0:01:06.5]} 25... Rfe8 {[%clk 0:00:02.1]} 26. Rac1 {[%clk 0:01:04.4]}
26... Rbc8 {[%clk 0:00:02.1]} 27. c5 {[%clk 0:01:01.9]} 27... dxc5 {[%clk
0:00:02]} 28. bxc5 {[%clk 0:01:02.8]} 28... Bc6 {[%clk 0:00:02.3]} 29. Nc4
{[%clk 0:00:57.4]} 29... Nd5 {[%clk 0:00:02.5]} 30. Ne5 {[%clk 0:00:56.4]} 30...
Nf4 {[%clk 0:00:02.6]} 31. Bf1 {[%clk 0:00:55.5]} 31... Bd5 {[%clk 0:00:02.1]}
32. c6 {[%clk 0:00:51.6]} 32... f6 {[%clk 0:00:02.4]} 33. Nd7 {[%clk 0:00:40.5]}
33... Bxc6 {[%clk 0:00:02.5]} 34. Nxf6+ {[%clk 0:00:35.3]} 34... Kg7 {[%clk
0:00:01.8]} 35. Nxe8+ {[%clk 0:00:34.9]} 35... Rxe8 {[%clk 0:00:01.3]} 36. Rxc6
{[%clk 0:00:35]} 1-0

[Event "*** SCC Grand Prix: Titled Tuesday Blitz"]
[Site "Chess.com"]
[Date "2020.06.09"]
[Round "3"]
[White "AradNazari"]
[Black "Papa12341234"]
[Result "0-1"]
[WhiteElo "2405"]
[BlackElo "2608"]
[TimeControl "180+1"]
[EndTime "9:28:56 PDT"]
[Termination "Papa12341234 won on time"]

1. e4 {[%clk 0:03:00.9]} 1... c5 {[%clk 0:03:00.1]} 2. Nc3 {[%clk 0:02:59]} 2...
d6 {[%clk 0:03:00]} 3. d4 {[%clk 0:02:58.1]} 3... cxd4 {[%clk 0:02:58.7]} 4.
Qxd4 {[%clk 0:02:59]} 4... Nf6 {[%clk 0:02:58.7]} 5. f3 {[%clk 0:02:58.5]} 5...
Nc6 {[%clk 0:02:55.9]} 6. Qd2 {[%clk 0:02:58.5]} 6... g6 {[%clk 0:02:51.3]} 7.
b3 {[%clk 0:02:58.7]} 7... Bg7 {[%clk 0:02:51.8]} 8. Bb2 {[%clk 0:02:59.1]} 8...
O-O {[%clk 0:02:52.3]} 9. O-O-O {[%clk 0:02:57.5]} 9... a6 {[%clk 0:02:52]} 10.
Kb1 {[%clk 0:02:57.9]} 10... b5 {[%clk 0:02:52]} 11. g4 {[%clk 0:02:58.4]} 11...
Bb7 {[%clk 0:02:50.9]} 12. h4 {[%clk 0:02:58.7]} 12... h5 {[%clk 0:02:50.8]} 13.
g5 {[%clk 0:02:10.5]} 13... Nd7 {[%clk 0:02:48.9]} 14. f4 {[%clk 0:02:09.7]}
14... Nc5 {[%clk 0:02:38.9]} 15. Bg2 {[%clk 0:02:07.4]} 15... Qd7 {[%clk
0:02:30]} 16. Nge2 {[%clk 0:01:01.5]} 16... Rac8 {[%clk 0:02:08.5]} 17. f5
{[%clk 0:00:49.9]} 17... Ne5 {[%clk 0:02:04.9]} 18. Rdf1 {[%clk 0:00:34]} 18...
b4 {[%clk 0:01:59.6]} 19. Nd5 {[%clk 0:00:33]} 19... Bxd5 {[%clk 0:01:49.1]} 20.
Qxd5 {[%clk 0:00:33.9]} 20... e6 {[%clk 0:01:47.4]} 21. fxe6 {[%clk 0:00:31.8]}
21... fxe6 {[%clk 0:01:48.3]} 22. Qd2 {[%clk 0:00:31.5]} 22... a5 {[%clk
0:01:44.7]} 23. Nf4 {[%clk 0:00:28.8]} 23... Rxf4 {[%clk 0:01:33.1]} 24. Rxf4
{[%clk 0:00:24]} 24... a4 {[%clk 0:01:33]} 25. Rd1 {[%clk 0:00:20.8]} 25... axb3
{[%clk 0:00:53.7]} 26. cxb3 {[%clk 0:00:21.7]} 26... Rc6 {[%clk 0:00:50.9]} 27.
Bf1 {[%clk 0:00:06.7]} 27... Rb6 {[%clk 0:00:44.7]} 28. Qd4 {[%clk 0:00:06]}
28... Kh7 {[%clk 0:00:35]} 29. Bh3 {[%clk 0:00:05.6]} 29... Rb7 {[%clk
0:00:18.2]} 30. Bf1 {[%clk 0:00:02.9]} 30... Qc6 {[%clk 0:00:17.8]} 31. Bc4
{[%clk 0:00:03.4]} 31... Ned3 {[%clk 0:00:16.1]} 32. Qxg7+ {[%clk 0:00:03.3]}
32... Rxg7 {[%clk 0:00:15.8]} 33. Bxg7 {[%clk 0:00:04]} 33... Nxf4 {[%clk
0:00:15.5]} 34. Rd3 {[%clk 0:00:04.6]} 34... Nfxd3 {[%clk 0:00:15.3]} 0-1

[Event "*** SCC Grand Prix: Titled Tuesday Blitz"]
[Site "Chess.com"]
[Date "2020.06.09"]
[Round "3"]
[White "rubhani"]
[Black "Ural_bogatyr"]
[Result "1-0"]
[WhiteElo "2548"]
[BlackElo "2298"]
[TimeControl "180+1"]
[EndTime "9:28:57 PDT"]
[Termination "rubhani won on time"]

1. e4 {[%clk 0:02:58.7]} 1... e5 {[%clk 0:02:56.2]} 2. Nf3 {[%clk 0:02:58.6]}
2... Nc6 {[%clk 0:02:55.7]} 3. Bb5 {[%clk 0:02:58.8]} 3... Bc5 {[%clk
0:02:54.9]} 4. O-O {[%clk 0:02:53.4]} 4... Nf6 {[%clk 0:02:47]} 5. c3 {[%clk
0:02:53.6]} 5... O-O {[%clk 0:02:38.9]} 6. d4 {[%clk 0:02:53.7]} 6... Bb6 {[%clk
0:02:38.4]} 7. Re1 {[%clk 0:02:51.3]} 7... d6 {[%clk 0:02:37.6]} 8. h3 {[%clk
0:02:50.4]} 8... a6 {[%clk 0:02:24.9]} 9. Ba4 {[%clk 0:02:50]} 9... Qe7 {[%clk
0:02:21.6]} 10. Be3 {[%clk 0:02:33.6]} 10... Rd8 {[%clk 0:02:11.2]} 11. Nbd2
{[%clk 0:02:29.2]} 11... Nb8 {[%clk 0:02:06.9]} 12. Qc2 {[%clk 0:02:00.2]} 12...
Nbd7 {[%clk 0:02:01.9]} 13. Rad1 {[%clk 0:01:51.7]} 13... Ba7 {[%clk 0:01:42.2]}
14. Bb3 {[%clk 0:01:47.6]} 14... Nf8 {[%clk 0:01:29.6]} 15. dxe5 {[%clk
0:01:22.1]} 15... dxe5 {[%clk 0:01:29.1]} 16. Bxa7 {[%clk 0:01:22.6]} 16... Rxa7
{[%clk 0:01:30]} 17. Nc4 {[%clk 0:01:22.9]} 17... Rxd1 {[%clk 0:01:29.3]} 18.
Rxd1 {[%clk 0:01:19.8]} 18... Ng6 {[%clk 0:01:28.7]} 19. Ncxe5 {[%clk 0:01:16]}
19... Nxe5 {[%clk 0:01:19.3]} 20. Nxe5 {[%clk 0:01:15.8]} 20... Ra8 {[%clk
0:01:02.6]} 21. Nxf7 {[%clk 0:01:02.4]} 21... Be6 {[%clk 0:00:56.9]} 22. Ng5
{[%clk 0:01:02.5]} 22... Bxb3 {[%clk 0:00:52.5]} 23. Qxb3+ {[%clk 0:01:03.4]}
23... Kh8 {[%clk 0:00:47.2]} 24. e5 {[%clk 0:01:02.7]} 24... Nh5 {[%clk
0:00:38.7]} 25. Nf3 {[%clk 0:00:53.1]} 25... Rf8 {[%clk 0:00:31.5]} 26. Qd5
{[%clk 0:00:50.9]} 26... Nf4 {[%clk 0:00:22.7]} 27. Qd7 {[%clk 0:00:45.8]} 27...
Qc5 {[%clk 0:00:16.2]} 28. Qg4 {[%clk 0:00:42.7]} 28... Ne2+ {[%clk 0:00:12.2]}
29. Kf1 {[%clk 0:00:30]} 29... Qb5 {[%clk 0:00:09.9]} 30. c4 {[%clk 0:00:28.7]}
30... Qxb2 {[%clk 0:00:06.9]} 31. Rd2 {[%clk 0:00:28.8]} 31... Qc1+ {[%clk
0:00:06.7]} 32. Kxe2 {[%clk 0:00:29.1]} 32... b5 {[%clk 0:00:04.7]} 33. cxb5
{[%clk 0:00:28.4]} 33... axb5 {[%clk 0:00:05.6]} 34. e6 {[%clk 0:00:26.9]} 34...
Re8 {[%clk 0:00:04.8]} 35. Ne5 {[%clk 0:00:23.7]} 35... Kg8 {[%clk 0:00:01.8]}
36. e7 {[%clk 0:00:20.6]} 1-0

[Event "*** SCC Grand Prix: Titled Tuesday Blitz"]
[Site "Chess.com"]
[Date "2020.06.09"]
[Round "3"]
[White "Berardino"]
[Black "TheBigBadChessDad"]
[Result "1-0"]
[WhiteElo "2526"]
[BlackElo "2247"]
[TimeControl "180+1"]
[EndTime "9:28:57 PDT"]
[Termination "Berardino won on time"]

1. e4 {[%clk 0:03:00.9]} 1... e5 {[%clk 0:02:59.2]} 2. Bc4 {[%clk 0:02:56.8]}
2... Nf6 {[%clk 0:02:58.6]} 3. d3 {[%clk 0:02:56.4]} 3... c6 {[%clk 0:02:57.9]}
4. Nf3 {[%clk 0:02:53.7]} 4... d5 {[%clk 0:02:57.4]} 5. Bb3 {[%clk 0:02:53]}
5... a5 {[%clk 0:02:57.4]} 6. a3 {[%clk 0:02:39.7]} 6... a4 {[%clk 0:02:56.4]}
7. Ba2 {[%clk 0:02:39.6]} 7... Bd6 {[%clk 0:02:51.4]} 8. O-O {[%clk 0:02:37.7]}
8... O-O {[%clk 0:02:47.8]} 9. Nc3 {[%clk 0:02:31.5]} 9... Be6 {[%clk
0:02:40.3]} 10. Bg5 {[%clk 0:02:06.2]} 10... d4 {[%clk 0:02:27.4]} 11. Ne2
{[%clk 0:01:51.3]} 11... h6 {[%clk 0:02:18.8]} 12. Bh4 {[%clk 0:01:46.2]} 12...
g5 {[%clk 0:02:15.8]} 13. Bg3 {[%clk 0:01:45]} 13... Nbd7 {[%clk 0:02:09.9]} 14.
Bxe6 {[%clk 0:01:35.2]} 14... fxe6 {[%clk 0:02:08.1]} 15. Nexd4 {[%clk
0:01:35.2]} 15... Qe7 {[%clk 0:01:49.4]} 16. Ne2 {[%clk 0:01:32.7]} 16... c5
{[%clk 0:01:44.8]} 17. c3 {[%clk 0:01:19.7]} 17... c4 {[%clk 0:01:29.1]} 18. Re1
{[%clk 0:01:10.7]} 18... cxd3 {[%clk 0:01:18]} 19. Nc1 {[%clk 0:01:09]} 19...
Nc5 {[%clk 0:01:01.5]} 20. Nxd3 {[%clk 0:01:08.7]} 20... Nfxe4 {[%clk
0:00:52.2]} 21. Bxe5 {[%clk 0:01:04]} 21... Bxe5 {[%clk 0:00:35.1]} 22. Ndxe5
{[%clk 0:00:53.7]} 22... Qg7 {[%clk 0:00:19.1]} 23. Qc2 {[%clk 0:00:49.5]} 23...
g4 {[%clk 0:00:15.8]} 24. Rxe4 {[%clk 0:00:31.9]} 24... Nxe4 {[%clk 0:00:15.1]}
25. Qxe4 {[%clk 0:00:31.6]} 25... gxf3 {[%clk 0:00:15.4]} 26. Nxf3 {[%clk
0:00:30.5]} 26... Rf6 {[%clk 0:00:14.7]} 27. Rd1 {[%clk 0:00:26.9]} 27... Raf8
{[%clk 0:00:14.2]} 28. Kh1 {[%clk 0:00:26.6]} 28... b5 {[%clk 0:00:11.8]} 29. h3
{[%clk 0:00:25.7]} 29... Qg6 {[%clk 0:00:08.8]} 30. Qe2 {[%clk 0:00:20.6]} 30...
Qh5 {[%clk 0:00:06.6]} 31. Kh2 {[%clk 0:00:15.6]} 31... Qf5 {[%clk 0:00:04.3]}
32. Rd4 {[%clk 0:00:13]} 32... e5 {[%clk 0:00:01.7]} 33. Re4 {[%clk 0:00:11.7]}
33... Re6 {[%clk 0:00:01.3]} 34. Nxe5 {[%clk 0:00:05.9]} 1-0

[Event "*** SCC Grand Prix: Titled Tuesday Blitz"]
[Site "Chess.com"]
[Date "2020.06.09"]
[Round "3"]
[White "esrosenberg"]
[Black "Nafania1"]
[Result "0-1"]
[WhiteElo "2215"]
[BlackElo "2421"]
[TimeControl "180+1"]
[EndTime "9:28:58 PDT"]
[Termination "Nafania1 won on time"]

1. Nf3 {[%clk 0:03:00.9]} 1... c5 {[%clk 0:02:58.7]} 2. c4 {[%clk 0:03:00.1]}
2... Nc6 {[%clk 0:02:58]} 3. g3 {[%clk 0:02:59.2]} 3... g6 {[%clk 0:02:57.4]} 4.
Bg2 {[%clk 0:02:59.2]} 4... Bg7 {[%clk 0:02:57.8]} 5. Nc3 {[%clk 0:02:59.5]}
5... d6 {[%clk 0:02:55.1]} 6. O-O {[%clk 0:02:58.6]} 6... Bf5 {[%clk 0:02:55.1]}
7. d4 {[%clk 0:02:52.3]} 7... cxd4 {[%clk 0:02:53.4]} 8. Nb5 {[%clk 0:02:49]}
8... e5 {[%clk 0:02:40.7]} 9. Qb3 {[%clk 0:01:58.2]} 9... a6 {[%clk 0:02:36.7]}
10. Na3 {[%clk 0:01:57.7]} 10... Rb8 {[%clk 0:02:28.4]} 11. Bg5 {[%clk
0:01:51.7]} 11... Nge7 {[%clk 0:02:27.5]} 12. Nh4 {[%clk 0:01:25]} 12... Bd7
{[%clk 0:02:19.5]} 13. f4 {[%clk 0:01:09.3]} 13... O-O {[%clk 0:02:04.2]} 14.
fxe5 {[%clk 0:01:06.2]} 14... dxe5 {[%clk 0:02:04.4]} 15. Bd5 {[%clk 0:00:55.3]}
15... Qe8 {[%clk 0:01:50.5]} 16. Qb6 {[%clk 0:00:29.1]} 16... Nxd5 {[%clk
0:01:29.8]} 17. cxd5 {[%clk 0:00:30]} 17... Ne7 {[%clk 0:01:29.9]} 18. d6 {[%clk
0:00:20.4]} 18... Nd5 {[%clk 0:01:22.9]} 19. Qb3 {[%clk 0:00:15.7]} 19... Be6
{[%clk 0:01:22]} 20. Qf3 {[%clk 0:00:14.8]} 20... f6 {[%clk 0:01:18.2]} 21. Bd2
{[%clk 0:00:13.7]} 21... Qd7 {[%clk 0:01:13.4]} 22. Nc4 {[%clk 0:00:12.7]} 22...
b5 {[%clk 0:01:13]} 23. Na5 {[%clk 0:00:10.8]} 23... Qxd6 {[%clk 0:01:11.6]} 24.
Rac1 {[%clk 0:00:10.8]} 24... Rbc8 {[%clk 0:01:10.1]} 25. a3 {[%clk 0:00:09.5]}
25... Qd7 {[%clk 0:01:03.3]} 26. Nb3 {[%clk 0:00:05.6]} 26... Qa7 {[%clk
0:00:54.6]} 27. Rxc8 {[%clk 0:00:03.5]} 27... Rxc8 {[%clk 0:00:54]} 28. Kh1
{[%clk 0:00:03.2]} 28... f5 {[%clk 0:00:51.5]} 29. Ng2 {[%clk 0:00:03.2]} 29...
Ne7 {[%clk 0:00:49.9]} 30. Qf2 {[%clk 0:00:03.2]} 30... Bxb3 {[%clk 0:00:48.5]}
31. Bg5 {[%clk 0:00:03.4]} 31... Bd5 {[%clk 0:00:46.2]} 32. Rc1 {[%clk 0:00:03]}
32... Rxc1+ {[%clk 0:00:45.4]} 33. Bxc1 {[%clk 0:00:03.9]} 33... Qc7 {[%clk
0:00:40]} 34. Bd2 {[%clk 0:00:03.5]} 34... Qc2 {[%clk 0:00:39.1]} 35. Bb4 {[%clk
0:00:03.1]} 35... Nc6 {[%clk 0:00:38.5]} 36. h4 {[%clk 0:00:01.3]} 36... Nxb4
{[%clk 0:00:33.5]} 37. axb4 {[%clk 0:00:02.2]} 37... Qxb2 {[%clk 0:00:33.9]} 38.
Kh2 {[%clk 0:00:02.4]} 38... Qxb4 {[%clk 0:00:33.8]} 39. Ne1 {[%clk 0:00:02.5]}
39... e4 {[%clk 0:00:31.4]} 40. g4 {[%clk 0:00:01.7]} 40... Qd6+ {[%clk
0:00:30.9]} 41. Kh3 {[%clk 0:00:01.3]} 41... Be6 {[%clk 0:00:30]} 0-1